bitfinex-derivatives/quotes_SOLF0:USTF0_20250823
["timestamp","ask_amount","ask_price","bid_price","bid_amount"]
[1755924685512,2.66,203.95,203.8,10.81840318]
[1755924685717,2.66,203.95,203.81,10.81644156]
[1755924685913,2.66,203.95,203.82,10.81644156]
[1755924686117,2.66,203.95,203.83,8.9851053]
[1755924686318,2.66,204.0,203.84,8.98386495]
[1755924686523,2.66,204.0,203.85,8.98386495]
[1755924686724,2.66,204.0,203.87,9.44649037]
[1755924686924,2.66,204.0,203.88,4.50052531]
[1755924687122,2.66,204.0,203.89,4.50052531]
[1755924687322,2.66,204.0,203.9,4.50052531]
[1755924687523,2.66,204.0,203.83,9.44649037]
[1755924687723,2.66,204.0,203.84,8.98149649]
[1755924687924,2.66,204.0,203.85,4.49964467]
[1755924688122,2.66,204.0,203.86,4.49964467]
[1755924688324,2.66,204.0,203.87,4.49964467]
[1755924688521,2.66,204.0,203.88,4.49964467]
[1755924688714,2.66,204.0,203.79,339.32649037]
[1755924688913,2.66,204.0,203.8,10.81900364]
[1755924689114,2.66,204.0,203.81,8.98690329]
[1755924689321,2.66,204.0,203.82,8.98737536]
[1755924689516,2.66,204.0,203.83,4.50237643]
[1755924689720,2.66,204.0,203.84,4.50237643]
[1755924689921,2.66,204.0,203.85,4.50237643]
[1755924690120,2.66,204.0,203.86,4.50237643]
[1755924690323,2.66,204.0,203.79,339.32649037]
[1755924690624,2.66,204.0,203.8,8.98895784]
[1755924690819,2.66,204.0,203.81,8.98949482]
[1755924691028,2.66,204.0,203.82,4.50371141]
[1755924691226,2.66,204.0,203.83,4.50371141]
[1755924691423,9.44649037,203.98,203.84,4.50371141]
[1755924691724,2.66,203.97,203.79,327.38]
[1755924691921,2.66,203.97,203.8,8.99175591]
[1755924692116,2.66,203.97,203.81,4.50488304]
[1755924692315,2.66,203.97,203.82,4.50488304]
[1755924692516,2.66,203.97,203.79,327.38]
[1755924692718,2.66,203.97,203.8,4.50530876]
[1755924692922,2.66,203.97,203.81,4.50530876]
[1755924693124,2.66,203.97,203.82,4.50530876]
[1755924693318,2.66,203.97,203.79,327.38]
[1755924693524,2.66,203.97,203.8,4.50462015]
[1755924693715,2.66,203.97,203.81,4.50462015]
[1755924694119,2.66,203.97,203.82,4.50502359]
[1755924694318,2.66,203.97,203.79,327.38]
[1755924694518,2.66,203.97,203.8,4.5053259]
[1755924694716,2.66,203.97,203.81,4.5053259]
[1755924694921,2.66,203.97,203.82,4.5053259]
[1755924695127,2.66,203.97,203.79,327.38]
[1755924695321,2.66,203.97,203.8,4.5044301]
[1755924695522,2.66,203.97,203.81,4.5044301]
[1755924695722,2.66,203.97,203.82,4.5044301]
[1755924695923,2.66,203.97,203.83,4.5044301]
[1755924696123,2.66,203.97,203.84,4.5044301]
[1755924696322,2.66,203.97,203.79,336.82649037]
[1755924696527,2.66,203.97,203.8,8.98679332]
[1755924696726,2.68,204.02,203.81,8.98636925]
[1755924696921,2.68,204.02,203.83,9.44649037]
[1755924697126,2.68,204.02,203.84,4.50232112]
[1755924697323,2.68,204.02,203.85,8.98312822]
[1755924697525,2.68,204.02,203.86,4.50232112]
[1755924697724,2.68,204.02,203.87,13.94881149]
[1755924697924,2.68,204.02,203.88,4.50232112]
[1755924698127,2.68,204.02,203.89,4.50232112]
[1755924698428,2.68,204.07,203.9,4.49493308]
[1755924698628,2.68,204.07,203.91,13.94142345]
[1755924698834,2.68,204.07,203.92,4.49493308]
[1755924699030,2.68,204.07,203.93,4.49493308]
[1755924699325,2.68,204.07,203.91,9.44649037]
[1755924699533,2.68,204.07,203.92,4.49114347]
[1755924699832,2.68,204.07,203.91,9.44649037]
[1755924700132,2.68,204.07,203.87,152.44649037]
[1755924700326,2.68,204.07,203.88,8.96544695]
[1755924700522,2.68,204.07,203.89,4.49156438]
[1755924700828,2.68,204.07,203.9,4.49156438]
[1755924701029,2.68,204.07,203.92,9.44649037]
[1755924701230,2.68,204.14,203.97,9.44649037]
[1755924701633,2.68,204.14,203.98,4.48164553]
[1755924701829,2.68,204.14,203.97,9.44649037]
[1755924702032,2.68,204.14,203.98,147.44065672]
[1755924702229,2.68,204.14,204.01,9.44649037]
[1755924702431,2.68,204.22,204.01,9.44649037]
[1755924702628,2.68,204.22,204.02,4.47386168]
[1755924702834,2.68,204.22,204.01,9.44649037]
[1755924703034,2.68,204.22,204.02,4.4741903]
[1755924703236,2.68,204.2,203.97,9.44649037]
[1755924703431,2.68,204.2,203.98,4.47686035]
[1755924703626,2.68,204.2,203.97,9.44649037]
[1755924703832,2.68,204.18,203.98,4.47258877]
[1755924704033,2.68,204.18,203.97,9.44649037]
[1755924704235,2.68,204.18,203.98,4.47291406]
[1755924704430,2.68,204.18,203.97,9.44649037]
[1755924704637,2.68,204.18,203.98,4.46941065]
[1755924704832,2.68,204.18,203.97,9.44649037]
[1755924705035,2.68,204.18,203.94,142.88]
[1755924705330,2.68,204.14,203.95,4.47048401]
[1755924705525,2.68,204.14,203.96,4.47048401]
[1755924705724,2.68,204.14,203.94,142.88]
[1755924705928,2.68,204.14,203.95,4.46944513]
[1755924706138,2.68,204.14,203.96,4.46944513]
[1755924706336,2.68,204.14,203.97,4.46855996]
[1755924706530,2.68,204.14,203.94,142.88]
[1755924706726,2.68,204.14,203.95,4.46720747]
[1755924706935,2.68,204.14,203.96,4.46720747]
[1755924707134,2.68,204.14,203.94,142.88]
[1755924707338,2.68,204.14,203.95,4.46633865]
[1755924707640,2.68,204.14,203.97,9.44649037]
[1755924707934,2.68,204.14,203.98,4.46633865]
[1755924708128,2.68,204.14,203.99,4.46633865]
[1755924708328,2.68,204.14,204.0,4.46633865]
[1755924708635,2.68,204.14,203.97,9.44649037]
[1755924708936,2.68,204.14,203.98,4.45949645]
[1755924709136,2.68,204.14,203.94,152.26649037]
[1755924709332,2.68,204.14,203.95,4.46225461]
[1755924709539,2.68,204.14,203.94,142.82]
[1755924709829,9.44649037,204.07,203.82,329.56]
[1755924710035,2.68,204.06,203.83,162.97922343]
[1755924710232,2.68,204.06,203.84,8.91451884]
[1755924710530,2.68,204.06,203.85,4.46594762]
[1755924710738,2.68,204.01,203.79,9.44649037]
[1755924710930,2.68,204.01,203.8,147.26997104]
[1755924711125,2.68,204.01,203.81,4.46997104]
[1755924711333,2.68,204.01,203.82,4.46997104]
[1755924711534,2.68,204.01,203.83,4.46997104]
[1755924711742,2.68,204.01,203.84,4.46997104]
[1755924711935,2.68,204.01,203.8,142.8]
[1755924712434,2.68,204.01,203.81,4.39911508]
[1755924712738,2.68,204.01,203.82,4.39911508]
[1755924712939,2.68,204.01,203.83,4.39887897]
[1755924713235,2.68,204.01,203.84,4.39887897]
[1755924713535,2.68,204.01,203.8,15.4762464]
[1755924713730,2.68,204.01,203.81,147.16251612]
[1755924713933,2.68,204.01,203.82,4.40251612]
[1755924714129,2.68,204.07,203.83,4.40192243]
[1755924714336,2.68,204.07,203.84,4.40192243]
[1755924714528,2.68,204.07,203.85,4.40192243]
[1755924714833,2.68,204.07,203.86,4.40192243]
[1755924715028,2.68,204.07,203.87,4.40192243]
[1755924715232,2.68,204.07,203.88,4.40192243]
[1755924715433,2.68,204.07,203.89,4.403078]
[1755924715734,2.68,204.07,203.81,158.2362464]
[1755924715939,2.68,204.07,203.82,10.66023346]
[1755924716140,2.68,204.07,203.83,8.8377997]
[1755924716442,18.1562464,204.07,203.84,4.40307011]
[1755924716643,2.68,204.06,203.85,4.40307011]
[1755924716835,2.68,204.06,203.86,4.40307011]
[1755924717035,2.68,204.06,203.83,142.72]
[1755924717247,2.68,204.06,203.84,4.40874313]
[1755924717446,2.68,204.06,203.85,4.40874313]
[1755924717644,2.68,204.06,203.86,4.40874313]
[1755924717840,2.68,204.06,203.83,142.72]
[1755924718040,2.68,204.03,203.84,4.4111724]
[1755924718239,2.68,204.03,203.83,142.72]
[1755924718240,2.68,204.03,203.85,4.4111724]
[1755924718448,2.68,204.03,203.83,142.72]
[1755924718642,4.9036,204.02,203.84,4.4158322]
[1755924718845,2.68,204.01,203.81,142.68]
[1755924719150,2.68,204.01,203.82,4.41821142]
[1755924719350,2.68,204.01,203.83,4.41821142]
[1755924719552,2.68,204.01,203.84,4.41821142]
[1755924719851,2.68,204.01,203.85,4.42148503]
[1755924720051,2.68,204.01,203.81,142.68]
[1755924720248,2.68,203.99,203.82,4.42179285]
[1755924720549,2.68,203.99,203.83,4.42179285]
[1755924720855,2.68,203.99,203.84,4.42179285]
[1755924721150,2.68,203.99,203.85,4.42390816]
[1755924721350,2.68,203.99,203.86,4.42390816]
[1755924721549,2.68,203.99,203.87,4.42701468]
[1755924721750,2.68,203.99,203.77,142.66]
[1755924721948,2.68,203.99,203.79,10.71780646]
[1755924722149,2.68,203.99,203.8,10.71780646]
[1755924722351,2.68,203.99,203.81,10.71780646]
[1755924722550,2.68,203.99,203.82,10.71780646]
[1755924722853,2.68,203.99,203.83,4.42685605]
[1755924723044,2.68,203.99,203.84,4.42685605]
[1755924723249,2.68,203.99,203.76,142.66]
[1755924723447,2.68,203.99,203.79,10.73774414]
[1755924723649,2.68,203.99,203.8,4.43509443]
[1755924723852,2.68,203.99,203.76,142.66]
[1755924723853,2.77,203.96,203.81,4.43509443]
[1755924724149,2.77,203.96,203.82,4.43509443]
[1755924724344,2.77,203.96,203.83,4.43509443]
[1755924724656,2.77,203.96,203.84,4.43774867]
[1755924724954,2.77,203.96,203.76,142.66]
[1755924725249,2.77,203.96,203.79,8.90830439]
[1755924725556,2.77,203.96,203.8,1.93827937]
[1755924725754,2.77,203.96,203.76,142.66]
[1755924725955,2.77,203.96,203.79,6.309047]
[1755924726155,2.77,203.96,203.8,4.47163643]
[1755924726354,2.77,203.96,203.76,142.66]
[1755924726557,2.77,203.96,203.79,6.31091634]
[1755924726749,2.77,203.96,203.76,142.66]
[1755924726946,2.77,203.96,203.79,4.47330871]
[1755924727149,2.77,203.96,203.8,4.47283715]
[1755924727351,7.6753,203.96,203.76,142.66]
[1755924727655,2.77,203.96,203.78,149.75646571]
[1755924728051,4.9056,203.94,203.78,149.75646571]
[1755924728248,2.77,203.93,203.78,149.75646571]
[1755924728747,4.9061,203.92,203.78,149.75646571]
[1755924728952,2.77,203.91,203.78,149.75646571]
[1755924729147,2.77,203.94,203.78,149.75646571]
[1755924729355,2.77,203.93,203.78,149.75646571]
[1755924730060,4.9065,203.91,203.78,149.75646571]
[1755924730359,2.77,203.9,203.78,149.75646571]
[1755924731760,2.77,203.9,203.63,329.7]
[1755924732060,2.77,203.9,203.64,146.32900305]
[1755924732262,9.45731952,203.88,203.65,11.29530007]
[1755924732457,2.77,203.87,203.66,1.83798055]
[1755924732654,2.77,203.87,203.67,1.83798055]
[1755924732855,2.77,203.87,203.68,1.8370221]
[1755924733057,4.9075,203.86,203.69,1.8370221]
[1755924733258,4.9075,203.86,203.65,9.45731952]
[1755924733559,4.9075,203.86,203.66,1.83623062]
[1755924733761,2.77,203.87,203.67,1.83623062]
[1755924734060,2.77,203.87,203.68,1.83623062]
[1755924734263,2.77,203.87,203.65,9.45731952]
[1755924734563,2.77,203.87,203.66,1.83576713]
[1755924734762,2.77,203.87,203.67,1.83576713]
[1755924734962,39.2503,203.93,203.73,9.45731952]
[1755924734963,2.77,203.93,203.73,9.45731952]
[1755924735160,2.77,203.93,203.74,142.5]
[1755924736154,2.77,203.93,203.74,151.95731952]
[1755924736353,329.7,203.94,203.78,9.45731952]
[1755924736558,2.77,203.98,203.78,9.45731952]
[1755924736960,2.77,203.98,203.75,9.45731952]
[1755924737155,2.77,203.96,203.75,9.45731952]
[1755924737466,2.77,203.96,203.76,4.39609441]
[1755924737766,2.77,203.96,203.77,4.39609441]
[1755924737961,2.77,203.96,203.78,4.39609441]
[1755924738160,2.77,203.96,203.75,9.45731952]
[1755924738360,2.77,203.96,203.76,142.42]
[1755924738862,2.77,203.91,203.76,142.42]
[1755924741559,2.77,203.96,203.77,4.39533666]
[1755924741760,2.77,203.96,203.76,151.87731952]
[1755924741961,2.77,203.96,203.77,4.39554666]
[1755924742164,2.77,203.96,203.76,151.87731952]
[1755924742364,2.77,203.95,203.76,142.34]
[1755924743266,2.77,203.95,203.77,13.83860592]
[1755924743458,2.77,203.95,203.78,4.38010596]
[1755924743658,2.77,204.01,203.81,9.45731952]
[1755924743861,2.77,204.01,203.82,4.38010596]
[1755924744161,2.77,204.01,203.83,4.37680306]
[1755924744364,2.77,204.01,203.81,9.45731952]
[1755924744565,2.77,204.01,203.82,4.37742885]
[1755924744864,2.77,204.01,203.83,4.37742885]
[1755924745063,2.77,204.01,203.84,4.37742885]
[1755924745261,142.28,204.04,203.86,9.45731952]
[1755924745462,2.77,204.06,203.9,9.45731952]
[1755924747063,2.77,204.06,203.88,142.26]
[1755924747263,2.77,204.06,203.89,4.37599533]
[1755924747464,2.77,204.06,203.88,142.26]
[1755924747664,2.77,204.06,203.89,4.37790094]
[1755924747867,2.77,204.06,203.88,142.26]
[1755924748059,2.77,204.06,203.89,4.37748754]
[1755924748264,2.77,204.06,203.9,4.37748754]
[1755924748466,2.77,204.06,203.88,142.26]
[1755924748660,2.77,204.06,203.89,4.37942023]
[1755924748857,2.77,204.06,203.91,9.45731952]
[1755924749057,2.77,204.06,203.92,4.3786531]
[1755924749256,2.77,204.06,203.91,9.45731952]
[1755924749459,2.77,204.06,203.92,4.38022628]
[1755924749663,2.77,204.06,203.91,9.45731952]
[1755924749859,2.77,204.06,203.92,4.38021516]
[1755924750064,2.77,204.06,203.91,9.45731952]
[1755924750263,2.77,204.06,203.92,4.38017586]
[1755924750460,2.77,204.06,203.91,9.45731952]
[1755924750766,2.77,204.06,203.92,4.38109089]
[1755924750962,2.77,204.06,203.93,4.38109089]
[1755924751163,2.77,204.06,203.91,9.45731952]
[1755924751359,2.77,204.11,203.95,9.45731952]
[1755924751560,2.77,204.11,203.96,4.37914865]
[1755924751763,2.77,204.11,203.95,9.45731952]
[1755924751963,2.77,204.11,203.96,4.37928625]
[1755924752160,2.77,204.11,203.95,9.45731952]
[1755924752360,2.77,204.11,203.96,4.3790725]
[1755924752566,2.77,204.11,203.95,9.45731952]
[1755924752765,2.77,204.11,203.96,4.37970078]
[1755924752967,2.77,204.11,203.95,9.45731952]
[1755924753167,2.77,204.11,203.96,4.37969895]
[1755924753367,2.77,204.11,203.97,4.37919068]
[1755924753562,2.77,204.11,203.95,9.45731952]
[1755924753768,2.77,204.11,203.96,4.37992882]
[1755924753969,2.77,204.11,203.97,4.37992882]
[1755924754171,2.77,204.11,203.95,9.45731952]
[1755924754371,2.77,204.11,203.96,4.37999048]
[1755924754671,2.77,204.11,203.97,4.37999048]
[1755924754974,2.77,204.11,203.91,9.45731952]
[1755924755170,2.77,204.11,203.92,4.38207614]
[1755924755470,9.45731952,204.09,203.93,4.38207614]
[1755924755772,9.45731952,204.09,203.75,14.67]
[1755924755773,2.61,204.08,203.86,141.98]
[1755924756075,2.61,204.08,203.89,9.45731952]
[1755924756375,2.61,204.08,203.9,4.38359445]
[1755924756573,2.61,204.08,203.91,4.38359445]
[1755924756770,2.61,204.08,203.92,4.38359445]
[1755924756967,2.61,204.07,203.86,141.98]
[1755924757475,2.61,204.07,203.87,10.60813934]
[1755924757669,2.61,204.07,203.88,4.38158018]
[1755924757873,2.61,204.07,203.89,4.38158018]
[1755924758171,2.61,204.07,203.9,4.38158018]
[1755924758474,2.61,204.07,203.91,4.38204375]
[1755924758671,2.61,204.07,203.92,4.38204375]
[1755924758976,2.61,204.07,203.86,141.98]
[1755924759180,2.61,204.07,203.87,10.60858915]
[1755924759476,2.61,204.07,203.88,4.38175942]
[1755924759675,2.61,204.07,203.89,4.38175942]
[1755924759972,2.61,204.07,203.9,4.38175942]
[1755924760179,2.61,204.07,203.86,141.98]
[1755924760376,2.61,204.07,203.87,10.60870387]
[1755924760575,2.61,204.07,203.88,8.776199]
[1755924760779,2.61,204.07,203.89,4.38185466]
[1755924761080,2.61,204.07,203.9,4.38185466]
[1755924761279,2.61,204.07,203.91,4.38185466]
[1755924761480,2.61,204.07,203.86,141.98]
[1755924761779,2.61,204.07,203.87,10.60665728]
[1755924761974,2.61,204.07,203.88,4.38096179]
[1755924762279,2.61,204.07,203.86,141.98]
[1755924762280,2.61,204.14,203.94,9.45731952]
[1755924762479,2.61,204.14,203.98,9.45731952]
[1755924763173,2.61,204.14,203.96,141.78]
[1755924763377,2.61,204.14,203.95,9.45731952]
[1755924763581,2.61,204.14,203.93,141.76]
[1755924763774,2.61,204.14,203.94,4.37400068]
[1755924763975,2.61,204.14,203.95,4.37400068]
[1755924764175,2.61,204.14,203.93,141.76]
[1755924764375,2.61,204.14,203.94,4.37364577]
[1755924764578,2.61,204.14,203.95,4.37364577]
[1755924764878,2.61,204.14,203.98,9.45731952]
[1755924765174,2.61,204.14,203.99,4.37120892]
[1755924765380,2.61,204.14,204.0,4.37120892]
[1755924765680,2.61,204.14,203.98,9.45731952]
[1755924765879,2.61,204.14,203.99,4.36924994]
[1755924766079,2.61,204.14,203.98,9.45731952]
[1755924766482,2.61,204.14,203.99,4.36802667]
[1755924766676,2.61,204.14,203.98,9.45731952]
[1755924767181,2.61,204.14,203.94,9.45731952]
[1755924767981,12.06731952,204.14,203.94,9.45731952]
[1755924768180,2.61,204.13,203.94,9.45731952]
[1755924768575,4.9012,204.12,203.93,141.64]
[1755924768780,2.61,204.11,203.93,141.64]
[1755924768980,2.61,204.09,203.93,141.64]
[1755924769278,2.61,204.09,203.87,9.45731952]
[1755924769482,2.61,204.09,203.88,4.37393552]
[1755924769684,2.61,204.09,203.89,4.3733073]
[1755924769888,2.61,204.09,203.9,4.3733073]
[1755924770082,2.61,204.09,203.87,9.45731952]
[1755924770386,2.61,204.09,203.88,10.5846157]
[1755924770584,2.61,204.09,203.89,4.37234474]
[1755924770786,2.61,204.09,203.9,4.37234474]
[1755924770987,2.61,204.09,203.91,4.37234474]
[1755924771177,2.61,204.09,203.87,9.45731952]
[1755924771376,2.61,204.09,203.88,4.37299034]
[1755924771683,4.9025,204.07,203.89,4.37299034]
[1755924771885,2.61,204.06,203.83,150.97731952]
[1755924772086,2.61,204.06,203.84,8.76308725]
[1755924772384,2.61,204.04,203.85,4.37532492]
[1755924772578,2.61,204.04,203.86,4.37532492]
[1755924772780,2.61,204.04,203.83,150.97731952]
[1755924772983,2.61,204.04,203.84,4.37795853]
[1755924773184,2.61,204.04,203.85,4.37795853]
[1755924773384,2.61,204.04,203.86,4.37795853]
[1755924773584,2.61,204.04,203.87,4.37795853]
[1755924773888,2.61,204.04,203.83,150.97731952]
[1755924774183,2.61,204.04,203.87,9.45731952]
[1755924774387,2.61,204.04,203.88,4.37893688]
[1755924774586,2.61,204.04,203.89,4.37893688]
[1755924774787,2.61,204.04,203.9,4.37893688]
[1755924774988,2.61,204.04,203.87,9.45731952]
[1755924775189,2.61,204.04,203.88,4.37782265]
[1755924775494,2.61,204.04,203.87,9.45731952]
[1755924775690,2.61,204.04,203.88,10.65396976]
[1755924775895,2.61,204.04,203.89,8.82271907]
[1755924776085,2.61,204.04,203.9,4.37963207]
[1755924776283,2.61,204.04,203.87,9.45731952]
[1755924776490,2.61,204.04,203.88,10.65641148]
[1755924776691,2.61,204.04,203.89,10.65641148]
[1755924776887,2.61,204.04,203.9,4.38039559]
[1755924777091,2.61,204.04,203.91,4.38039559]
[1755924777292,2.61,204.04,203.92,4.38351618]
[1755924777592,2.61,204.04,203.93,4.38351618]
[1755924777891,2.61,204.04,203.91,9.45731952]
[1755924778093,2.61,204.04,203.92,4.38362634]
[1755924778392,2.61,204.09,203.93,4.38362634]
[1755924778693,2.61,204.09,203.94,4.38497742]
[1755924778891,2.61,204.09,203.95,4.38497742]
[1755924779094,2.61,204.09,203.91,9.45731952]
[1755924779294,2.61,204.09,203.92,10.66715831]
[1755924779489,2.61,204.09,203.95,9.45731952]
[1755924779697,2.61,204.09,203.96,8.83492286]
[1755924779996,2.61,204.09,203.97,8.83409288]
[1755924780295,2.61,204.09,203.98,4.38481236]
[1755924780495,2.61,204.09,203.99,4.38481236]
[1755924780696,2.61,204.09,203.95,9.45731952]
[1755924780992,2.61,204.09,203.96,4.38757743]
[1755924781193,2.61,204.09,203.97,4.38757743]
[1755924781393,2.61,204.09,203.98,4.38757743]
[1755924781589,2.61,204.09,203.95,9.45731952]
[1755924781795,2.61,204.14,203.96,10.67658581]
[1755924781995,2.61,204.14,204.0,9.45731952]
[1755924782195,2.61,204.14,204.01,8.84137538]
[1755924782397,2.61,204.14,204.02,4.38887271]
[1755924782588,2.61,204.14,204.03,4.38887271]
[1755924782791,2.61,204.14,204.04,4.38887271]
[1755924782989,329.54,204.2,204.05,4.38887271]
[1755924783195,2.7,204.18,204.0,9.45731952]
[1755924783397,2.7,204.18,204.01,10.66690531]
[1755924783591,2.7,204.18,204.02,1.83353001]
[1755924783792,2.7,204.18,204.03,8.83581903]
[1755924783992,2.7,204.18,204.04,4.38591107]
[1755924784190,2.7,204.18,204.01,151.4699459]
[1755924784495,2.7,204.18,204.02,4.38759527]
[1755924784697,2.7,204.18,204.01,151.4699459]
[1755924784698,2.7,204.18,204.03,4.38759527]
[1755924784993,2.7,204.18,204.04,4.38759527]
[1755924785193,2.7,204.18,204.01,151.4699459]
[1755924785392,2.7,204.16,204.02,4.38974318]
[1755924785593,2.7,204.16,204.01,151.4699459]
[1755924785794,2.7,204.16,204.02,4.39366391]
[1755924785993,2.7,204.16,204.01,151.4699459]
[1755924786196,2.7,204.16,204.02,4.39367079]
[1755924786494,2.7,204.16,204.01,151.4699459]
[1755924786795,2.7,204.14,204.01,151.4699459]
[1755924787390,2.7,204.14,204.02,4.40060756]
[1755924787587,2.7,204.14,204.01,151.4699459]
[1755924787789,2.7,204.14,204.01,148.9699459]
[1755924788194,4.9011,204.12,204.01,148.9699459]
[1755924788391,2.7,204.11,204.01,148.9699459]
[1755924789201,8.18508635,204.16,204.02,10.66979109]
[1755924789395,2.7,204.16,204.03,10.67049437]
[1755924789596,2.7,204.16,204.04,4.35111374]
[1755924789898,2.7,204.16,204.05,4.35111374]
[1755924790091,2.7,204.16,204.06,4.35111374]
[1755924790291,10.80040701,204.21,204.07,4.35111374]
[1755924790500,2.7,204.21,204.08,4.35111374]
[1755924790693,2.7,204.21,204.09,4.35111374]
[1755924790891,2.7,204.21,204.1,4.35111374]
[1755924791092,2.7,204.21,204.01,158.42726542]
[1755924791292,2.7,204.21,204.02,10.89309525]
[1755924791495,2.7,204.21,204.03,10.89296026]
[1755924791692,2.7,204.21,204.04,9.05180993]
[1755924792002,2.7,204.21,204.05,4.57219272]
[1755924792304,2.7,204.21,204.06,14.02951224]
[1755924792608,2.7,204.21,204.07,9.04739369]
[1755924792904,2.7,204.21,204.08,9.21308845]
[1755924793101,2.7,204.21,204.09,4.56682425]
[1755924793296,2.7,204.21,204.06,9.45731952]
[1755924793604,2.7,204.2,204.07,2.06820951]
[1755924793798,2.7,204.2,204.01,148.9699459]
[1755924794196,2.7,204.2,204.02,11.29729663]
[1755924794506,10.80040701,204.3,204.07,9.45731952]
[1755924794708,2.7,204.3,204.08,6.17613306]
[1755924794901,2.7,204.3,204.09,6.17613306]
[1755924795101,2.7,204.28,204.1,6.17613306]
[1755924795307,2.7,204.28,204.07,9.45731952]
[1755924795308,2.7,204.28,204.05,9.45731952]
[1755924795502,2.7,204.22,204.06,6.16644757]
[1755924795711,9.45731952,204.2,204.01,148.9699459]
[1755924795911,2.7,204.19,203.98,140.88]
[1755924796103,2.7,204.12,203.98,140.88]
[1755924796511,7.6011,204.12,203.98,140.88]
[1755924796804,2.7,204.05,203.82,338.85731952]
[1755924797011,2.7,204.05,203.83,6.10628333]
[1755924797209,2.7,204.04,203.84,6.10628333]
[1755924797404,2.7,204.0,203.82,329.4]
[1755924797606,2.7,203.95,203.74,9.45731952]
[1755924797813,2.7,203.95,203.75,9.8424281]
[1755924798008,9.45731952,203.91,203.76,1.84451792]
[1755924798209,2.7,203.85,203.61,9.45731952]
[1755924798408,2.7,203.85,203.65,9.45731952]
[1755924798609,2.7,203.85,203.66,6.11124379]
[1755924798814,2.7,203.85,203.7,9.45731952]
[1755924799211,2.7,203.85,203.67,140.82]
[1755924799810,2.7,203.85,203.63,150.27731952]
[1755924800009,2.7,203.85,203.65,9.45731952]
[1755924800211,2.7,203.85,203.66,6.19381423]
[1755924800407,2.7,203.85,203.67,6.19381423]
[1755924800714,2.7,203.85,203.65,147.49960891]
[1755924800909,15.4919927,203.9,203.65,147.49960891]
[1755924800910,2.7,203.83,203.65,147.49960891]
[1755924801114,2.7,203.82,203.65,147.49960891]
[1755924801908,4.907,203.88,203.65,147.49960891]
[1755924801909,15.4919927,203.91,203.68,24.558]
[1755924802213,2.7,203.9,203.69,6.1732989]
[1755924802408,2.7,203.9,203.67,140.86]
[1755924802613,2.7,203.9,203.71,24.5544]
[1755924802813,2.7,203.9,203.72,4.9105]
[1755924803012,15.4919927,203.9,203.67,140.86]
[1755924803214,2.7,203.89,203.67,140.86]
[1755924803614,2.7,203.88,203.68,24.5579]
[1755924804219,2.7,203.88,203.71,29.4651]
[1755924804418,2.7,203.88,203.71,24.5543]
[1755924804714,369.5564927,203.96,203.68,24.5579]
[1755924804715,2.7,203.95,203.75,24.5493]
[1755924805414,2.7,203.95,203.79,29.4532]
[1755924805615,2.7,203.95,203.73,140.88]
[1755924805815,18.1919927,203.95,203.74,29.02162017]
[1755924806115,15.4919927,203.95,203.75,4.47092017]
[1755924806318,2.7,203.91,203.76,4.47092017]
[1755924806518,2.7,203.91,203.7,24.5557]
[1755924806818,2.7,203.91,203.71,4.47228315]
[1755924807019,2.7,203.91,203.72,4.47228315]
[1755924807320,2.7,203.91,203.73,4.47228315]